Cogmind - Beta 17.1 @@@ ROGUE MODE // 2026.08.25 @ 18:08:11 Player: Caluan Result: Destroyed by H-66 Slayer with Gauss Rifle Performance ------------- Evolutions (4) 2000 Regions Visited (11) 2200 Robots Destroyed (161) 805 Value Destroyed (5562) 5562 Prototype IDs (19) 380 Alien Tech Used (0) 0 Bonus (1161) 1161 TOTAL SCORE: 12108 Bonus ------- Follower Combat Kills 442 Met Data Miner 300 MAIN.C Attacked Proxy Base 500 Friendly Fire -81 Cogmind --------- Core Integrity 0/850 Matter 300/300 Energy 288/290 System Corruption 0% Temperature Cool (1) Movement Walking (260) Ox2 Location -6/Factory Parts ------- > --- POWER (2) -------- Improved Deuterium Engine > --- PROPULSION (4) --- Carbon-fiber Leg > --- UTILITY (5) ------ Large Storage Unit Enhanced Optical Array Improved Melee Analysis Suite Improved Light Armor Plating > --- WEAPON (4) ------- Gatling Laser Flak Gun Great Axe > --- INVENTORY (15) --- Flexi-carbon Leg Improved Cooling System Peak State ------------ > --- POWER ------------ Improved Deuterium Engine > --- PROPULSION ------- Advanced Treads Advanced Treads Medium Treads Improved Medium Treads > --- UTILITY ---------- Huge Storage Unit Improved Weapon Cycler Medium Reactive Plating Splice Drone Bay > --- WEAPON ----------- Minigun Assault Cannon Advanced Assault Cannon Advanced Assault Cannon > --- INVENTORY -------- Light Deuterium Engine Improved Deuterium Engine Improved Deuterium Engine Light Angular Momentum Engine Light Treads Advanced Treads Kinecellerator Improved Light Armor Plating Layered Heavy Armor Plating Medium Reactive Plating Medium Reactive Plating Insulated Plating Hacking Suite Hacking Suite Heavy Particle Cannon Autogun Autogun Minigun Advanced EMP Blaster Mini Grenade Launcher Greatsword [Rating: 59] Favorites ----------- Power Improved Deuterium Engine Engine Improved Deuterium Engine Power Core Light Nuclear Core Propulsion Light Treads Treads Light Treads Leg Carbon-fiber Leg Hover Unit Backup Propulsion I Utility Hacking Suite Device Splice Drone Bay Storage Huge Storage Unit Processor Enhanced Optical Array Hackware Hacking Suite Protection Improved Weapon Shielding Weapon Improved Assault Rifle Energy Gun Backup Laser I Energy Cannon Heavy Particle Cannon Ballistic Gun Improved Assault Rifle Ballistic Cannon Light Cannon Launcher Mini Grenade Launcher Slashing Weapon Great Axe Build | -11 -10 -10 -10 -9 -8 -7 -7 -7 -7 -6 -6 ------- Run | Yrd Mat Min Exi Min Mat Fac Low Low Dat Pro Fac Slots Evolved 8 | . . . . . 4 2 . . . . 2 Power 1 | . . . . . . . . . . . 1 Propulsion 2 | . . . . . 1 1 . . . . . Utility 3 | . . . . . 1 1 . . . . 1 Weapon 2 | . . . . . 2 . . . . . . Parts Attached 121 | 6 14 1 . 3 38 13 13 2 . 8 23 Power 14 | 1 3 . . 2 3 2 1 . . 1 1 Engine 11 | 1 3 . . 1 2 1 1 . . 1 1 Core 3 | . . . . 1 1 1 . . . . . Reactor . | . . . . . . . . . . . . Propulsion 31 | 2 2 . . . 12 3 4 2 . 1 5 Treads 29 | 2 2 . . . 12 3 4 2 . 1 3 Leg 2 | . . . . . . . . . . . 2 Wheel . | . . . . . . . . . . . . Hover . | . . . . . . . . . . . . Flight . | . . . . . . . . . . . . Utility 35 | 1 3 . . . 7 7 4 . . 5 8 Device 8 | . . . . . 2 1 3 . . 2 . Storage 6 | 1 2 . . . 1 . . . . 1 1 Processor 3 | . . . . . . . . . . . 3 Hackware 1 | . 1 . . . . . . . . . . Protection 17 | . . . . . 4 6 1 . . 2 4 Artifact . | . . . . . . . . . . . . Weapon 41 | 2 6 1 . 1 16 1 4 . . 1 9 Energy Gun 3 | 1 1 . . . . . . . . . 1 Energy Cannon 3 | . . . . . 1 . . . . . 2 Ballistic Gun 18 | 1 2 . . . 10 . 1 . . 1 3 Ballistic Cannon 11 | . 2 . . 1 4 1 3 . . . . Launcher 3 | . 1 1 . . 1 . . . . . . Special Weapon . | . . . . . . . . . . . . Impact Weapon . | . . . . . . . . . . . . Slashing Weapon 3 | . . . . . . . . . . . 3 Piercing Weapon . | . . . . . . . . . . . . Special Melee Weapon . | . . . . . . . . . . . . Unidentified Prototypes 3 | . . . . . 2 . 1 . . . . Parts Lost 69 | . 3 . . 1 15 10 11 4 . 7 18 Power 7 | . 1 . . 1 1 1 1 . . . 2 Propulsion 25 | . 2 . . . 7 2 4 2 . 2 6 Utility 18 | . . . . . 3 5 4 . . 2 4 Weapon 19 | . . . . . 4 2 2 2 . 3 6 Highest Loss Streak 8 | . 3 . . 1 4 2 8 2 . 7 6 To Critical Strikes 1 | . . . . . . . . . . 1 . Average Backups 17 | . 6 12 16 18 20 23 16 16 15 16 2 Power 1 | . . . . . 1 1 1 2 2 2 . Propulsion 3 | . 2 5 6 6 3 3 2 2 1 1 . Utility 5 | . . 1 2 3 6 9 4 5 5 6 1 Weapon 7 | . 3 5 8 9 9 9 7 7 7 5 . Tool/Special . | . . . . . . . . . . . . Unused Backups 23 | . 1 . . . 7 1 . . . 9 5 Power 3 | . . . . . . . . . . 2 1 Propulsion 3 | . . . . . 1 . . . . 1 1 Utility 11 | . 1 . . . . 1 . . . 6 3 Weapon 6 | . . . . . 6 . . . . . . Tool/Special . | . . . . . . . . . . . . Average Slot Usage (%) 94 | . 91 100 100 99 96 99 99 98 100 82 40 Engine 7 | . 13 14 14 11 4 5 6 7 7 5 2 Core 1 | . . . . 1 4 1 . . . . . Treads 26 | . 26 28 28 28 26 29 29 28 30 24 3 Device 5 | . . . . . . . 18 23 23 15 . Storage 8 | . 14 14 14 14 9 7 7 7 7 5 1 Hackware 6 | . 7 14 14 14 9 4 . . . . . Protection 6 | . . . . . 7 17 3 . . 2 2 Ballistic Gun 15 | . 9 . . . 26 26 15 11 7 6 1 Ballistic Cannon 11 | . 10 27 28 22 5 3 13 18 23 18 . Peak Build Rating 59 | 6 10 12 12 15 31 42 53 54 53 59 36 Average Rating 29 | 2 8 10 11 12 26 37 49 52 53 46 22 On Entrance 23 | . 6 10 11 12 15 31 41 53 53 53 2 Avg Prop Armor Cover (%) 10 | . . . . . . . . . . . 10 Naked Turns 129 | . . . . . . . . . . 112 17 Heaviest Build 139 | 13 51 51 51 51 105 122 124 124 124 139 45 Greatest Support 102 | 40 40 40 40 40 60 87 102 102 102 102 42 Greatest Overweight (x) 10 | . 2 1 1 1 1 1 2 1 1 2 10 Average Overweight (x) . | . . 1 1 1 . 1 1 1 1 . . Largest Inventory Capacity 25 | 8 20 20 20 20 25 25 25 25 25 25 15 Average Capacity 21 | 6 12 20 20 20 22 25 25 25 25 21 8 Most Carried 25 | 3 10 14 18 19 25 25 24 19 16 24 5 Average Carried 17 | . 6 12 16 18 20 23 16 17 16 18 3 Final Capacity 25 | 8 20 20 20 20 25 25 25 25 25 5 15 Final Carried 25 | . 10 14 18 19 25 24 16 16 16 5 2 Class Distribution -------------------- 43% | Tank 29% | Mutant 10% | Gunner 10% | Scavenger-Tank 3% | Scavenger-Mutant Dominant Class ---------------- Mutant | -10/Materials Mutant | -10/Mines Mutant | -10/Exiles Mutant | -9/Mines Tank | -8/Materials Scavenger-Tank | -7/Factory Gunner | -7/Lower Caves Tank | -7/Lower Caves Tank | -7/Data Miner Commander-Tank | -6/Proximity Caves Mutant | -6/Factory Resources | -11 -10 -10 -10 -9 -8 -7 -7 -7 -7 -6 -6 ----------- Run | Yrd Mat Min Exi Min Mat Fac Low Low Dat Pro Fac Matter Collected 5305 | 240 258 208 . 31 1666 1247 608 252 . 480 315 Remotely . | . . . . . . . . . . . . Salvage Created 5327 | . 741 239 . 40 1763 1622 166 187 . 216 353 Parts 293 | . 58 14 . 8 91 75 11 11 . 12 13 Haulers Intercepted 7 | . 2 . . . 4 1 . . . . . Recyclers Shooed 1 | . . . . . . 1 . . . . . Parts Field Recycled . | . . . . . . . . . . . . Retrieved Matter . | . . . . . . . . . . . . Parts Self-Destructed 54 | . . . . . . . 11 7 . 36 . Prevented 31 | . . . . . . . . . . 31 . Parts Restored . | . . . . . . . . . . . . Kills | -11 -10 -10 -10 -9 -8 -7 -7 -7 -7 -6 -6 ------- Run | Yrd Mat Min Exi Min Mat Fac Low Low Dat Pro Fac Combat Hostiles Destroyed 133 | . 20 10 . 5 37 32 11 8 . 4 6 Melee 5 | . . . . . . . . . . . 5 Guns 60 | . 17 . . . 15 21 5 2 . . . Cannons 34 | . . 5 . 2 12 5 4 2 . 4 . AOE 33 | . 3 5 . 3 10 6 2 4 . . . Classes Destroyed 18 | . 7 1 . . 5 2 1 . . 2 . Worker 2 | . 1 . . . . 1 . . . . . Builder 4 | . 1 . . . 2 1 . . . . . Hauler 7 | . 2 . . . 4 1 . . . . . Recycler 5 | . . 1 . . 2 2 . . . . . Mechanic 1 | . . . . . . . . . . 1 . Operator 2 | . 1 . . . . 1 . . . . . Watcher 7 | . 1 . . . 4 2 . . . . . Swarmer 39 | . 9 6 . 4 3 5 8 4 . . . Grunt 61 | . 11 4 . 1 21 16 . 2 . 2 4 Brawler 2 | . . . . . 1 . . 1 . . . Duelist 1 | . . . . . . 1 . . . . . Protector 1 | . . . . . . . . . . 1 . Sentry 10 | . . . . . 6 2 . . . . 2 Specialist 5 | . . . . . 4 . . . . 1 . Hunter 6 | . . . . . 1 3 2 . . . . Programmer 5 | . . . . . . 5 . . . . . Heavy 1 | . . . . . 1 . . . . . . Behemoth 2 | . . . . . . . 1 1 . . . Best Kill Streak 9 | . 7 5 . 4 9 7 4 4 . 2 4 Combat Bots Only 6 | . 6 5 . 4 6 5 4 4 . 2 4 Max Kills in Single Turn 3 | . 2 2 . 3 2 3 1 2 . 1 1 Gunslinging . | . . . . . . . . . . . . Exploded 3 | . 2 2 . 3 2 3 1 2 . . . Melee 1 | . . . . . . . . . . . 1 Uniques/NPCs Destroyed . | . . . . . . . . . . . . Combat | -11 -10 -10 -10 -9 -8 -7 -7 -7 -7 -6 -6 -------- Run | Yrd Mat Min Exi Min Mat Fac Low Low Dat Pro Fac Hostile Shots Fired 1192 | . 91 27 . 15 230 235 103 48 . 161 282 Missed 328 | . 23 7 . 2 68 61 26 18 . 51 72 Hits 864 | . 68 20 . 13 162 174 77 30 . 110 210 Melee 7 | . . . . . . 1 . . . 6 . Projectile 857 | . 68 20 . 13 162 173 77 30 . 104 210 AOE 2 | . . . . . . 2 . . . . . Critical Strikes 27 | . 2 . . . 5 3 1 . . 7 9 Damage Taken 13846 | . 783 237 . 211 2712 2589 1363 527 . 1673 3751 Core 1947 | . 124 58 . 21 293 210 129 54 . 194 864 Absorbed by Shields 88 | . . . . . . . . 68 . . 20 Redirected to Shielding 205 | . . . . . 26 179 . . . . . Ignored by Resistances 194 | . . . . . . . . . . 194 . Regen/Repaired (Parts) 1294 | . 97 . . . 336 70 . . . 446 345 Core Remaining (%) 45 | 100 . . . 18 46 . . . . 16 . Volleys Fired 365 | . 66 15 . 5 105 86 24 16 . 21 27 Largest 4 | . 2 2 . 2 4 4 4 4 . 4 2 Hottest 142 | . 85 60 . 60 135 106 140 142 . 142 63 Shots Fired 1060 | . 131 22 . 10 319 309 90 58 . 76 45 Gun 684 | . 130 . . . 156 266 44 20 . 24 44 Cannon 341 | . . 17 . 8 150 36 43 35 . 51 1 Launcher 35 | . 1 5 . 2 13 7 3 3 . 1 . Special . | . . . . . . . . . . . . Kinetic 932 | . 83 17 . 8 294 302 87 55 . 75 11 Thermal 66 | . 21 . . . 12 . . . . . 33 Explosive 35 | . 1 5 . 2 13 7 3 3 . 1 . Electromagnetic 27 | . 26 . . . . . . . . . 1 Robot Hit Streak 40 | . 18 8 . 8 40 14 12 12 . 7 24 Robot Miss Streak 5 | . 5 1 . 1 4 5 3 3 . 4 2 Penetration Max . | . . . . . . . . . . . . Secondary Targets 8 | . 2 . . . 1 5 . . . . . Max Gunslinging Chain 1 | . 1 . . . 1 1 . . . . . Shots Hit Robots 700 | . 82 16 . 5 217 187 55 37 . 44 57 Core Hits 333 | . 42 13 . 6 98 94 21 16 . 24 19 Critical Kills 3 | . . . . . 2 1 . . . . . Critical Parts Destroyed 1 | . . . . . . 1 . . . . . Critical Strikes 12 | . 1 1 . . 4 3 1 1 . 1 . Burn 1 | . 1 . . . . . . . . . . Destroy 4 | . . . . . 2 2 . . . . . Blast 7 | . . 1 . . 2 1 1 1 . 1 . Melee Attacks 20 | . . . . . . . . . . . 20 Impact . | . . . . . . . . . . . . Slashing 20 | . . . . . . . . . . . 20 Piercing . | . . . . . . . . . . . . Sneak Attacks . | . . . . . . . . . . . . Combat Hostiles . | . . . . . . . . . . . . Follow-up Attacks . | . . . . . . . . . . . . Damage Inflicted 15358 | . 1085 607 . 211 4594 3717 1382 1197 . 1351 1214 Guns 6791 | . 907 . . . 1638 2633 419 234 . 425 535 Cannons 4751 | . . 255 . 87 1773 599 663 602 . 755 17 Explosions 3145 | . 178 352 . 124 1183 476 300 361 . 171 . Melee 662 | . . . . . . . . . . . 662 Ramming 9 | . . . . . . 9 . . . . . Kinetic 10605 | . 493 255 . 87 3186 3232 1082 836 . 1180 254 Thermal 736 | . 230 . . . 225 . . . . . 281 Explosive 3097 | . 130 352 . 124 1183 476 300 361 . 171 . Electromagnetic 249 | . 232 . . . . . . . . . 17 Impact . | . . . . . . . . . . . . Slashing 662 | . . . . . . . . . . . 662 Piercing . | . . . . . . . . . . . . Highest Corruption 7 | . . . . . . 7 7 . . 5 . Average Corruption 3 | . . . . . . 3 2 . . 4 . Corruption Purged 7 | . . . . . . . 7 . . . . Corruption Blocked . | . . . . . . . . . . . . Effects 57 | . . . . . . 48 5 . . 4 . Message Errors 12 | . . . . . . 10 2 . . . . Matter Fused 12 | . . . . . . 10 1 . . 1 . Heat Flow Errors 8 | . . . . . . 7 1 . . . . Energy Discharges 8 | . . . . . . 5 1 . . 2 . Data Loss (minor) 9 | . . . . . . 8 . . . 1 . Data Loss (major) 2 | . . . . . . 2 . . . . . Misfires 2 | . . . . . . 2 . . . . . Alerts 2 | . . . . . . 2 . . . . . Weapon Failures 2 | . . . . . . 2 . . . . . Overload Shots . | . . . . . . . . . . . . Overflow Damage 232 | . 16 22 . 8 53 28 64 23 . . 18 Projectiles 29 | . . . . . 6 17 6 . . . . Explosions 185 | . 16 22 . 8 47 11 58 23 . . . Melee 18 | . . . . . . . . . . . 18 Knockbacks 42 | . . 3 . . 22 9 3 1 . 4 . Impact . | . . . . . . . . . . . . Kinetic 42 | . . 3 . . 22 9 3 1 . 4 . Secondary . | . . . . . . . . . . . . Self-Inflicted Damage 232 | . 60 23 . 76 29 . 23 21 . . . Shots 9 | . 2 1 . 2 2 . 1 1 . . . Rammed 1 | . . . . . . 1 . . . . . Targets Rammed 1 | . . . . . . 1 . . . . . Kicked . | . . . . . . . . . . . . Crushed . | . . . . . . . . . . . . Highest Temperature 618 | . 186 42 . 27 397 406 282 477 . 618 306 Average Temperature 113 | . 46 22 . 18 80 116 118 201 . 242 116 Received Heat Transfer 4457 | . 294 75 . 51 1035 843 96 80 . 540 1443 Effects 29 | . . . . . 1 9 . 2 . 16 1 Shutdowns 7 | . . . . . 1 2 . 1 . 3 . Energy Bleed 6 | . . . . . . 1 . 1 . 3 1 Interference 11 | . . . . . . 6 . . . 5 . Matter Decay 2 | . . . . . . . . . . 2 . Short Circuit 2 | . . . . . . . . . . 2 . Damage (minor) 1 | . . . . . . . . . . 1 . Siege Activations . | . . . . . . . . . . . . Martial Activations . | . . . . . . . . . . . . Shielding Activations . | . . . . . . . . . . . . Robots Disrupted . | . . . . . . . . . . . . Combat Hostiles . | . . . . . . . . . . . . Robots Corrupted . | . . . . . . . . . . . . Combat Hostiles . | . . . . . . . . . . . . Parts Fried . | . . . . . . . . . . . . Impact Corruptions . | . . . . . . . . . . . . Robots Melted 1 | . . . . . . . . . . . 1 Combat Hostiles 1 | . . . . . . . . . . . 1 Parts Melted 2 | . . . . . . . . . . . 2 Heat Transferred 1998 | . 518 . . . 333 . . . . . 1147 Parts Sabotaged . | . . . . . . . . . . . . Parts Stolen . | . . . . . . . . . . . . Parts Stripped . | . . . . . . . . . . . . Power Chain Reactions 1 | . 1 . . . . . . . . . . Alert | -11 -10 -10 -10 -9 -8 -7 -7 -7 -7 -6 -6 ------- Run | Yrd Mat Min Exi Min Mat Fac Low Low Dat Pro Fac Maximum Alert Level 1 | . 1 . . . 1 1 . . . . . Low Security (%) 86 | 100 99 100 . 100 77 83 . . . . 100 Level 1 13 | . . . . . 22 16 . . . . . Level 2 . | . . . . . . . . . . . . Level 3 . | . . . . . . . . . . . . Level 4 . | . . . . . . . . . . . . Level 5 . | . . . . . . . . . . . . High Security . | . . . . . . . . . . . . Max Security . | . . . . . . . . . . . . Peak Influence 332 | . 204 129 . 101 234 332 . . . . 99 Initial 100 | . . 19 . . 23 100 . . . . 99 Average 92 | . 98 39 . 36 121 94 . . . . 27 Influence Increases 4446 | . 555 337 . 194 1142 925 435 190 . 401 267 Destroy 0b10 Robot/C 2900 | . 400 240 . 120 740 640 220 160 . 260 120 Destroy 0b10 Robot/NC 145 | . 30 5 . . 60 40 . . . 10 . Destroy Leader 608 | . 76 50 . 20 186 166 50 30 . . 30 Allied During Kill 54 | . . 6 . 7 . . . . . 41 . Successful Hack 40 | . 5 . . . 6 17 . . . . 12 Disable Machine 15 | . . . . . 15 . . . . . . Destroy Structure 189 | . 14 36 . 17 90 32 . . . . . Partial Spotted 45 | . 15 . . . . . . . . . 30 Lose Combat Pursuer 450 | . 15 . . 30 45 30 165 . . 90 75 Influence Decreases 4446 | . 503 331 58 133 980 821 724 228 . 243 425 Entered New Map 441 | . . 33 58 . 38 123 122 8 . . 59 Time Decay 3005 | . 473 298 . 100 658 424 505 204 . 104 239 Lost Part 505 | . 30 . . . 140 90 97 16 . 70 62 Lost Ally 102 | . . . . 33 . . . . . 69 . Purge Threat 393 | . . . . . 144 184 . . . . 65 Squads Dispatched 26 | . 4 . . . 5 11 . . . . 6 Investigation 6 | . 3 . . . 1 1 . . . . 1 Extermination 7 | . . . . . . 5 . . . . 2 Reinforcement 8 | . 1 . . . 4 2 . . . . 1 Assault . | . . . . . . . . . . . . Garrison 5 | . . . . . . 3 . . . . 2 Intercept . | . . . . . . . . . . . . Searches Triggered . | . . . . . . . . . . . . Data Miner Redirects 1 | . . . . . . . . . . . 1 Construction Impeded . | . . . . . . . . . . . . Haulers Reinforced . | . . . . . . . . . . . . Active Scanning Responses . | . . . . . . . . . . . . Cargo Convoy Interrupts . | . . . . . . . . . . . . Stealth | -11 -10 -10 -10 -9 -8 -7 -7 -7 -7 -6 -6 --------- Run | Yrd Mat Min Exi Min Mat Fac Low Low Dat Pro Fac Distress Signals 6 | . 1 . . . 4 . . . . . 1 Communications Jammed . | . . . . . . . . . . . . Distress Signals . | . . . . . . . . . . . . Times Spotted 220 | . 33 9 . 9 56 44 17 9 . 28 15 Peak Tracking Total 9 | . 5 3 . 4 8 6 4 4 . 9 5 Tactical Retreats 19 | . 1 . . 1 3 2 8 . . 2 2 Traps | -11 -10 -10 -10 -9 -8 -7 -7 -7 -7 -6 -6 ------- Run | Yrd Mat Min Exi Min Mat Fac Low Low Dat Pro Fac Traps Triggered 11 | . 3 . . . . 7 . . . . 1 Indirectly . | . . . . . . . . . . . . Trap Hack Attempts . | . . . . . . . . . . . . Triggered . | . . . . . . . . . . . . Disarmed . | . . . . . . . . . . . . Reprogrammed . | . . . . . . . . . . . . Reused . | . . . . . . . . . . . . Traps Extracted . | . . . . . . . . . . . . Installed . | . . . . . . . . . . . . Triggered . | . . . . . . . . . . . . Machines | -11 -10 -10 -10 -9 -8 -7 -7 -7 -7 -6 -6 ---------- Run | Yrd Mat Min Exi Min Mat Fac Low Low Dat Pro Fac Machines Disabled 1 | . . . . . 1 . . . . . . Max in Single Turn 1 | . . . . . 1 . . . . . . Machines Repaired . | . . . . . . . . . . . . Machines Dismantled . | . . . . . . . . . . . . Machines Sabotaged . | . . . . . . . . . . . . Overloaded Fab Kills . | . . . . . . . . . . . . Hacking | -11 -10 -10 -10 -9 -8 -7 -7 -7 -7 -6 -6 --------- Run | Yrd Mat Min Exi Min Mat Fac Low Low Dat Pro Fac Machines Accessed 43 | . 6 1 1 . 13 12 1 1 4 . 4 Terminals 28 | . 5 . . . 8 10 1 1 . . 3 Fabricators 1 | . . . . . . 1 . . . . . Repair Stations 5 | . 1 . . . 2 1 . . . . 1 Recycling Units 2 | . . . . . 2 . . . . . . Scanalyzers 1 | . . . . . 1 . . . . . . Garrison Access . | . . . . . . . . . . . . Total Hacks 127 | . 11 1 9 . 35 25 1 1 32 . 12 Successful 100 | . 5 1 9 . 27 15 1 1 32 . 9 Failed 27 | . 6 . . . 8 10 . . . . 3 Catastrophic 7 | . 1 . . . 4 2 . . . . . Database Lockouts . | . . . . . . . . . . . . Manual 29 | . 3 . . . 17 5 . . . . 4 Terminals 61 | . 9 . . . 21 20 1 1 . . 9 Fabricators 3 | . . . . . . 3 . . . . . Repair Stations 13 | . 2 . . . 6 2 . . . . 3 Recycling Units 4 | . . . . . 4 . . . . . . Scanalyzers 4 | . . . . . 4 . . . . . . Garrison Access . | . . . . . . . . . . . . Terminal Hacks 75 | . 3 1 9 . 13 10 1 1 32 . 5 Record 25 | . . . 9 . 2 1 1 1 11 . . Part Schematic 12 | . . . . . . . . . 12 . . Robot Schematic 6 | . . . . . . . . . 6 . . Prototype ID Bank 6 | . . . . . 2 1 . . 3 . . Open Door 1 | . . 1 . . . . . . . . . Branch Access Points 3 | . 1 . . . 1 1 . . . . . Recycling Unit Index 1 | . . . . . 1 . . . . . . Alert Level 13 | . . . . . 6 4 . . . . 3 Unreport Threat 5 | . . . . . 1 2 . . . . 2 Hauler Manifests 1 | . 1 . . . . . . . . . . Zone Layout 2 | . 1 . . . . 1 . . . . . Fabricator Hacks 3 | . . . . . . 3 . . . . . Network Status 1 | . . . . . . 1 . . . . . Load Schematic 1 | . . . . . . 1 . . . . . Build 1 | . . . . . . 1 . . . . . Repair Station Hacks 13 | . 2 . . . 6 2 . . . . 3 Scan Component 6 | . 1 . . . 3 1 . . . . 1 Repair 6 | . 1 . . . 3 1 . . . . 1 Refit 1 | . . . . . . . . . . . 1 Recycling Unit Hacks 3 | . . . . . 3 . . . . . . Report Inventory 2 | . . . . . 2 . . . . . . Retrieve Components 1 | . . . . . 1 . . . . . . Scanalyzer 4 | . . . . . 4 . . . . . . Insert Component 2 | . . . . . 2 . . . . . . Analyze 1 | . . . . . 1 . . . . . . Retrieve Study 1 | . . . . . 1 . . . . . . Garrison Access Hacks . | . . . . . . . . . . . . Unauthorized Hacks 2 | . . . . . 1 . . . . . 1 Terminals 1 | . . . . . . . . . . . 1 Assimilate 1 | . . . . . . . . . . . 1 Fabricators . | . . . . . . . . . . . . Repair Stations . | . . . . . . . . . . . . Recycling Units 1 | . . . . . 1 . . . . . . Reject 1 | . . . . . 1 . . . . . . Scanalyzers . | . . . . . . . . . . . . Garrison Access . | . . . . . . . . . . . . Data Cores Recovered . | . . . . . . . . . . . . Used . | . . . . . . . . . . . . Hacking Detections 25 | . 3 . . . 10 9 . . . . 3 Full Trace Events 3 | . . . . . 1 1 . . . . 1 Feedback Events . | . . . . . . . . . . . . Feedback Blocked . | . . . . . . . . . . . . Robot Schematics Acquired 6 | . . . . . . . . . 6 . . Robots Built . | . . . . . . . . . . . . Authchips . | . . . . . . . . . . . . Time . | . . . . . . . . . . . . Total Robot Build Rating . | . . . . . . . . . . . . Part Schematics Acquired 13 | . . . . . 1 . . . 12 . . Parts Built 2 | . . . . . . 2 . . . . . Authchips . | . . . . . . . . . . . . Time 73 | . . . . . . 73 . . . . . Total Part Build Rating 6 | . . . . . . 6 . . . . . Part Studies Acquired 1 | . . . . . 1 . . . . . . Parts Repaired 6 | . 1 . . . 3 1 . . . . 1 Time 223 | . 26 . . . 128 13 . . . . 56 Parts Recycled . | . . . . . . . . . . . . Recycled Matter . | . . . . . . . . . . . . Retrieved Matter . | . . . . . . . . . . . . Retrieved Components 9 | . . . . . 9 . . . . . . Parts Scanalyzed 1 | . . . . . 1 . . . . . . Part Schematics Acquired 1 | . . . . . 1 . . . . . . Parts Damaged . | . . . . . . . . . . . . Bothacking | -11 -10 -10 -10 -9 -8 -7 -7 -7 -7 -6 -6 ------------ Run | Yrd Mat Min Exi Min Mat Fac Low Low Dat Pro Fac Used RIF Installer . | . . . . . . . . . . . . Robots Hacked . | . . . . . . . . . . . . Non-combat . | . . . . . . . . . . . . Combat . | . . . . . . . . . . . . Robot Hacks Applied . | . . . . . . . . . . . . Relay Couplers Released . | . . . . . . . . . . . . Fabnet Peak Effective % . | . . . . . . . . . . . . Robots Rewired 9 | . . . 3 . . . . . . 6 . Allies Hacked . | . . . . . . . . . . . . Hacks Repelled . | . . . . . . . . . . . . Allies | -11 -10 -10 -10 -9 -8 -7 -7 -7 -7 -6 -6 -------- Run | Yrd Mat Min Exi Min Mat Fac Low Low Dat Pro Fac Total Allies 13 | . . 1 3 . . . . . . 8 1 Largest Group 6 | . . 1 3 3 . . . . . 6 1 Highest-Rated Group 108 | . . 31 37 37 . . . . . 108 10 Highest-Rated Ally 96 | . . 31 31 21 . . . . . 96 10 Total Orders . | . . . . . . . . . . . . Ally Attacks 76 | . . 12 . 20 . . . 3 . 41 . Total Damage 1243 | . . 125 . 189 . . . 23 . 906 . Kills 16 | . . 2 . 4 . . . . . 10 . Allies Corrupted . | . . . . . . . . . . . . Allies Melted 2 | . . . . . . . . . . 2 . Intel | -11 -10 -10 -10 -9 -8 -7 -7 -7 -7 -6 -6 ------- Run | Yrd Mat Min Exi Min Mat Fac Low Low Dat Pro Fac Active Infowar (turns) 792 | . . . . . . . . . . . 792 Optics 792 | . . . . . . . . . . . 792 Robot Analysis Total . | . . . . . . . . . . . . Derelict Logs Recovered 5 | . . 2 . . . . 2 1 . . . Drone Launches 3 | . . . . . . . . 3 . . . Drone Recoveries 3 | . . . . . . . . 3 . . . Exploration | -11 -10 -10 -10 -9 -8 -7 -7 -7 -7 -6 -6 ------------- Run | Yrd Mat Min Exi Min Mat Fac Low Low Dat Pro Fac Turns Passed 16565 | 111 1423 1062 1382 285 4252 3138 1784 1404 196 697 831 Spaces Moved 6904 | 66 592 420 567 108 1514 1153 757 630 93 416 588 Core 543 | 5 1 . . . . . . . . 214 323 Treads 6168 | 61 591 420 567 108 1514 1153 757 630 93 202 72 Legs 66 | . . . . . . . . . . . 66 Wheels . | . . . . . . . . . . . . Hover 127 | . . . . . . . . . . . 127 Flight . | . . . . . . . . . . . . Fastest Speed 50 | 50 150 240 240 240 160 215 212 212 212 50 50 Average Speed 205 | 151 185 240 240 240 230 227 215 213 212 128 89 Slowest Speed 550 | 160 320 240 240 240 243 242 272 221 212 272 550 Overloaded Moves . | . . . . . . . . . . . . Propulsion Burnouts . | . . . . . . . . . . . . Robots Hopped . | . . . . . . . . . . . . Potential Cave-ins 2 | . . . . . . 2 . . . . . Cave-ins Triggered 1 | . . . . . . 1 . . . . . Exploration Rate (%) 57 | 3 76 89 92 34 80 29 83 76 69 45 13 Regions Visited 11 Branch Regions 7 Pre-discovered Areas 3 | . . 2 . . . . . . 1 . . Known Exits Taken 3 | . 1 . . . . 1 . 1 . . . Unknown Exits Taken 8 | 1 . 1 1 1 1 . 1 . 1 1 . Scrap Searched 12 | . . 3 . . . . 7 2 . . . Spaces Dug . | . . . . . . . . . . . . Terrain Destroyed 289 | . 12 56 . 21 94 40 25 19 . 22 . Melee . | . . . . . . . . . . . . Projectile 30 | . . 1 . . 3 2 5 2 . 17 . AOE 259 | . 12 55 . 21 91 38 20 17 . 5 . Terrain Rammed . | . . . . . . . . . . . . Walls Destroyed . | . . . . . . . . . . . . Machines Disabled . | . . . . . . . . . . . . Actions | -11 -10 -10 -10 -9 -8 -7 -7 -7 -7 -6 -6 --------- Run | Yrd Mat Min Exi Min Mat Fac Low Low Dat Pro Fac Total 8563 | 77 810 451 589 123 2076 1465 859 664 92 545 812 Wait 835 | . 91 7 10 6 346 180 57 8 . 15 115 Move 6893 | 65 591 419 566 107 1513 1152 756 629 92 415 588 Hop . | . . . . . . . . . . . . Pick Up 124 | 6 24 5 4 1 35 16 4 4 . 8 17 Fast Attach 20 | . . . . 1 6 2 . . . 1 10 Attach 93 | 6 15 . . . 23 11 12 5 . 6 15 Detach 18 | . 9 . . . 6 . . 1 . 1 1 Swap 45 | . 3 4 . 3 21 6 4 1 . 3 . Drop 59 | . 11 1 . . 21 7 . . . 13 6 Fire 365 | . 66 15 . 5 105 86 24 16 . 21 27 Melee 20 | . . . . . . . . . . . 20 Ram . | . . . . . . . . . . . . Kick . | . . . . . . . . . . . . Crush 1 | . . . . . . 1 . . . . . Escape Stasis 17 | . . . . . . 4 . . . . 13 Rewire 73 | . . . 9 . . . 2 . . 62 . Trap . | . . . . . . . . . . . . Miscellaneous . | . . . . . . . . . . . . Route ------- -11/Scrapyard -10/Materials (discovered 5 exits: *Mat x2 / *Min x2 / [*Sub]) -10/Mines (discovered 4 exits: *Mat x2 / *Exi / [*Sub]) -10/Exiles (discovered 2 exits: [*Min x2]) -9/Mines -8/Materials (discovered 3 exits: *Fac x3) -7/Factory (discovered 3 exits: *Sto / *Low x2) -7/Lower Caves -7/Lower Caves (discovered 2 exits: *Fac / *Dat) -7/Data Miner -6/Proximity Caves -6/Factory (discovered 1 exit: [*Low]) History --------- Turn | Location | Event 11 | -11/Scrapyard | Discovered new exit (range 12) 112 | -11/Scrapyard | Entered Materials 168 | -10/Materials | Discovered new exit (range 13) 314 | -10/Materials | Build established: Mutant 369 | -10/Materials | Discovered new exit (range 16) 593 | -10/Materials | Lost 3 parts (1p2n) 691 | -10/Materials | Discovered new exit (range 16) 991 | -10/Materials | Build established: Scavenger-Mutant 1085 | -10/Materials | Repaired Lgt. Treads 1257 | -10/Materials | Discovered new exit (range 15) 1349 | -10/Materials | Build established: Mutant 1499 | -10/Materials | Identified exit to Mines 1508 | -10/Materials | Discovered new exit (range 9) 1535 | -10/Materials | Entered Mines 1537 | -10/Mines | Core integrity fell below 50% 1643 | -10/Mines | Found the Drone Emporium 1654 | -10/Mines | Found Prototype Device 1813 | -10/Mines | A weapon hastily lodged in a ceiling crevice suddenly fell to the ground 1848 | -10/Mines | Discovered new exit (range 9) 2020 | -10/Mines | Identified exit to Materials 2082 | -10/Mines | Learned location of Storage (-7) 2429 | -10/Mines | Escorted by a lone wolf Derelict 2435 | -10/Mines | Discovered exit to Materials (range 9) 2575 | -10/Mines | Deemed a non-threat by the Exiles lab entrance 2575 | -10/Mines | Discovered new exit (range 5) 2597 | -10/Mines | Entered Exiles 2597 | -10/Exiles | Found Exiles lab destroyed 2597 | -10/Exiles | Accompanied by 1 ally 2629 | -10/Exiles | Discovered new exit (range 15) 3950 | -10/Exiles | Discovered new exit (range 14) 3979 | -10/Exiles | Entered Mines 3979 | -9/Mines | Accompanied by 3 allies 4050 | -9/Mines | Assembled infested the area 4097 | -9/Mines | Core integrity fell below 20% 4132 | -9/Mines | Lost 3 allies 4245 | -9/Mines | Discovered new exit (range 9) 4264 | -9/Mines | Entered Materials 4264 | -8/Materials | Evolved 4 slots: Propulsion x1, Utility x1, Weapon x2 4539 | -8/Materials | Lost 4 parts (2n2w) 4713 | -8/Materials | Discovered new exit (range 16) 5137 | -8/Materials | Repaired Lgt. Cannon 5424 | -8/Materials | Build established: Tank 6693 | -8/Materials | Lost 3 parts (1p2n) 6693 | -8/Materials | Discovered new exit (range 16) 7059 | -8/Materials | Core integrity fell below 50% 7299 | -8/Materials | Repaired Imp. Assault Rifle 7357 | -8/Materials | Repaired Imp. Assault Rifle 8466 | -8/Materials | Discovered new exit (range 4) 8516 | -8/Materials | Entered Factory 8516 | -7/Factory | Evolved 2 slots: Propulsion x1, Utility x1 8788 | -7/Factory | Build established: Scavenger-Tank 9367 | -7/Factory | Discovered new exit (range 16) 9732 | -7/Factory | Identified exit to Storage 9732 | -7/Factory | Identified exit to Lower Caves 9872 | -7/Factory | Repaired Lgt. Armor Plating 10118 | -7/Factory | Garrison activated, responded to threat 10316 | -7/Factory | Fabricated Adv. Treads? 10468 | -7/Factory | Build established: Tank 10976 | -7/Factory | Allied Derelicts emerged from ambush trap array 11568 | -7/Factory | Crushed by falling debris 11654 | -7/Factory | Entered Lower Caves 11989 | -7/Lower Caves | Spotted B-75 Beast 12067 | -7/Lower Caves | Destroyed B-75 Beast 12091 | -7/Lower Caves | Identified Splice Drone Bay 12097 | -7/Lower Caves | Lost 8 parts (1p3n2u2w) 12309 | -7/Lower Caves | Build established: Gunner 12439 | -7/Lower Caves | Learned Factory stockpile data 13085 | -7/Lower Caves | Discovered new exit (range 8) 13438 | -7/Lower Caves | Entered another Lower Caves area 13703 | -7/Lower Caves | Discovered new exit (range 7) 13743 | -7/Lower Caves | Core integrity fell below 50% 13941 | -7/Lower Caves | Build established: Tank 14455 | -7/Lower Caves | Spotted B-75 Beast 14530 | -7/Lower Caves | Destroyed B-75 Beast 14626 | -7/Lower Caves | Identified exit to Data Miner 14842 | -7/Lower Caves | Entered Data Miner 14842 | -7/Data Miner | Discovered new exit (range 6) 14883 | -7/Data Miner | Met Data Miner 14927 | -7/Data Miner | Learned location of Section 7 (-2) 14927 | -7/Data Miner | Acquired the access code to Warlord's prototype stash 14989 | -7/Data Miner | Received God Mode back door access code from Data Miner 15038 | -7/Data Miner | Entered Proximity Caves 15041 | -6/Proximity Caves | Greeted by an Infiltrator in a former 0b10 base 15309 | -6/Proximity Caves | Former 0b10 base attacked by MAIN.C 15438 | -6/Proximity Caves | Lost 3 allies 15502 | -6/Proximity Caves | Lost 5 allies 15573 | -6/Proximity Caves | Escorted by Enhanced Grunt 15601 | -6/Proximity Caves | Lost 3 allies 15623 | -6/Proximity Caves | Core integrity fell below 20% 15638 | -6/Proximity Caves | 0b10 base defense nominally successful 15650 | -6/Proximity Caves | Lost 7 parts (2n2u3w) 15727 | -6/Proximity Caves | Discovered new exit (range 8) 15735 | -6/Proximity Caves | Entered Factory 15735 | -6/Factory | Evolved 2 slots: Power x1, Utility x1 15836 | -6/Factory | Repaired Lyr. Heavy Armor Plating 15852 | -6/Factory | Build established: Mutant 15974 | -6/Factory | Lost 3 parts (2p1n) 16075 | -6/Factory | Spotted B-75 Beast 16166 | -6/Factory | Lost 6 parts (3n1u2w) 16174 | -6/Factory | Discovered new exit (range 5) 16384 | -6/Factory | Garrison activated, responded to threat 16408 | -6/Factory | Core integrity fell below 50% 16430 | -6/Factory | Core integrity fell below 20% 16448 | -6/Factory | Lost 6 parts (1n3u2w) 16557 | -6/Factory | Incoming investigation squad redirected 16566 | -6/Factory | Destroyed by H-66 Slayer with Gauss Rifle Last Messages --------------- Acquired Imp. Deuterium Engine. Acquired 10 matter. Acquired Gatling Laser. Acquired Flak Gun. Connecting with Terminal... >>Alert(Check) Current Alert Level: Low Security >>Alert(Purge) Purged threat record, alert level lowered. Connecting with Terminal... ALERT: Suspicious activity at Terminal F008. Dispatching Investigation squad. ALERT: Potential suspicious activity detected, Programmers report to Factory Zone 4H. ALERT: Higher priority target reported, redirecting investigation. Acquired 20 matter. Penetrated by Slug. Carbon-fiber Leg destroyed. Penetrated by Slug. Map ----- +----------------------------------------------------+ | ??????# ###? | | ??????+ #??? | | ????????######## #??? | | ???????# # #??? | | ????????[? """ / #??? | | ?????????? """ # #####+#### | | ???????????"""?# #?# # | | ??????????? ???# #?# T # | | ????????????#+## #?# # | | ?############ ### # | | ?+ + # | | ???# ^##+##/## ### # | | ???# # % # #?###h#### | | ???# # # #???# #??? | | ???# ^# # #???# #??? | | ??## # # ##### #??? | | ??+ / + #??? | | ??## #### ####### #??? | | ???# #??########?????# #??? | | ???# #?????????????### ###? | | ???# #????????###### #? | | ### ########## ! #? | | % !#? | | ###+############# #? | | ?# # % # ## #? | | ?# """ ! #! * #* ####@###? | | ?# """ # [+% #? ?? | | ?# """ # !! #= ## """ # | | ?# ! # ! # ## """ # | | ?# """ # # T# """ # | | ?# """ # # # # | | ?# """ # # ## ] ! ]# | | ?# # # ######### | | ?########+# = # #???????? | | ????????# ######## #???????? | | ???????## ######## #???????? | | ???????# #???????? | | ???????# +????? | | ? ####????? | | #########+#########+##???????? | | ??????? ????????????????????? | | ?????" ??????????????????????? | | ???# "???????????????????????? | | ???#?????????????????????????? | | ?????????????????????????????? | | ?????????????????????????????? | | ?????????????????????????????? | | ?????????????????????????????? | | ?????????????????????????????? | | ?????????????????????????????? | +----------------------------------------------------+ Best States ------------- Heat Dissipation 37 Coolant Potential 50 Energy Generation 16 Energy Capacity 290 Matter Stores 300 Matter Capacity 300 Sight Range 22 Terrain Scan Density 10 Armor Coverage 600 Resistance: KI 30 Weapon Shielding 66 Weapon Cycling 20 Evasion (%) 55 Melee Accuracy 6 Recoil Reduction 4 Kinecelleration 30 Offensive Hacking 10 Item Schematics ----------------- Adv. Treads | -8/Materials | Scanalyzed Combat Drone Bay | -7/Data Miner | Free Lgt. Regenerative Plating | -7/Data Miner | Free Biomechanical Wings | -7/Data Miner | Free Antimatter Cannon | -7/Data Miner | Free Gravity Neutralizer | -7/Data Miner | Free Adv. Shield Generator | -7/Data Miner | Free KE Penetrator | -7/Data Miner | Free Gyrokinetic Inverter | -7/Data Miner | Free Enh. Gauss Cannon | -7/Data Miner | Free Imp. Remote Shield | -7/Data Miner | Free Adv. Sensor Array | -7/Data Miner | Free Adv. Datajack | -7/Data Miner | Free Robot Schematics ------------------ R-10 Processor | -7/Data Miner | Free L-41 Fighter | -7/Data Miner | Free W-25 Informer | -7/Data Miner | Free B-48 Gladiator | -7/Data Miner | Free S-27 Virus | -7/Data Miner | Free E-15 Imp | -7/Data Miner | Free Fabricated ------------ Adv. Treads | x2 | -7/Factory Repaired ---------- Lgt. Treads | 30% | -10/Materials Lgt. Cannon | 9% | -8/Materials Imp. Assault Rifle | 15% | -8/Materials Imp. Assault Rifle | 22% | -8/Materials Lgt. Armor Plating | 22% | -7/Factory Lyr. Heavy Armor Plating | 54% | -6/Factory Studied --------- Adv. Treads | -8/Materials | Hacked Alien Tech Used ----------------- None Achievements -------------- Bumper Bots Ew, Corruption Fitting Room Heavy Suspicion I Have A Map? Item+ Overwhelming Spot Them First Well Done Challenges ------------ None Game ------ Seed BattleAmuletGenerator Manual? 0 Play Time 02:09:55 Cumulative 202.5 hours Start 2026.08.25 @ 15:15:03 End 2026.08.25 @ 18:08:11 Sessions 1 Manual Loads 0 Difficulty Rogue Special Mode None Game No. 249 Rogue 249 Adventurer 0 Explorer 0 Win Type - Total 2 Types 2/0/0/0/0/0/0/0/0/0 Lore% 27 Gallery% 53 Achievement% 30 Wizard Run 0 Options --------- Layout 1 ASCII 0 Keyboard 0 Movement Numpad Keybinds 0 Fullscreen 2 Font 24/Smallcaps Map View 50x35 Zoom Use 0% Tactical HUD 0 Map Filters NONE Filters NONE Steam 1 RUN: 4766c8a3-91dc-4778-b281-941f36e699b5